{"text_format":"3","workbook":"xlsx","n_sheets":1,"sheets":["Tekanan Darah dan Gula Darah"],"not_rendered":{"defined_names":9},"read":"whole","date_system":"1900"}

{"sheet":"Tekanan Darah dan Gula Darah","index":0,"n_rows":13,"n_cols":11,"rows_kept":13,"merged":[[0,1,4,3],[0,4,0,9],[1,4,1,6],[1,7,1,9]]}
[null,"Pencatat Tekanan dan Gula Darah",null,null,"Sesuaikan nilai skala dalam sel E2 hingga J5 di bawah ini."]
[{"$nulls":4},"TEKANAN DARAH",null,null,"GULA DARAH"]
[{"$nulls":4},120,"SISTOLIK",140,70,100,150]
[{"$nulls":4},80,"DIASTOLIK",90,"RENDAH","NORMAL","TINGGI"]
[{"$nulls":4},"TEKANAN TARGET",null,"HUBUNGI DOKTER"]
[null,"Tanggal","Waktu","Acara","Sistolik","Diastolik","Denyut Jantung","Gula Darah","Tingkat","Status","Catatan"]
[null,{"$f":"TODAY()","v":"2022-08-03"},"06:00:00","Bangun",129,79,72,55,{"$f":"TekananDarahDanGulaDarah[[#This Row],[Gula Darah]]","v":55},{"$f":"IFERROR(IF(TekananDarahDanGulaDarah[[#This Row],[Tingkat]]=0,\"\",IF(TekananDarahDanGulaDarah[[#This Row],[Tingkat]]<=GRendah,\"Rendah\",IF(AND(TekananDarahDanGulaDarah[[#This Row],[Tingkat]]>GRendah,TekananDarahDanGulaDarah[[#This Row],[Tingkat]]<GTinggi),\"Normal\",\"Tinggi\"))), \"\")","v":"Rendah"}]
[null,{"$f":"TODAY()","v":"2022-08-03"},"07:00:00","Sebelum Makan",120,80,74,70,{"$f":"TekananDarahDanGulaDarah[[#This Row],[Gula Darah]]","v":70},{"$f":"IFERROR(IF(TekananDarahDanGulaDarah[[#This Row],[Tingkat]]=0,\"\",IF(TekananDarahDanGulaDarah[[#This Row],[Tingkat]]<=GRendah,\"Rendah\",IF(AND(TekananDarahDanGulaDarah[[#This Row],[Tingkat]]>GRendah,TekananDarahDanGulaDarah[[#This Row],[Tingkat]]<GTinggi),\"Normal\",\"Tinggi\"))), \"\")","v":"Rendah"}]
[null,"2022-08-03","09:00:00","Setelah Makan",133,80,75,75,{"$f":"TekananDarahDanGulaDarah[[#This Row],[Gula Darah]]","v":75},{"$f":"IFERROR(IF(TekananDarahDanGulaDarah[[#This Row],[Tingkat]]=0,\"\",IF(TekananDarahDanGulaDarah[[#This Row],[Tingkat]]<=GRendah,\"Rendah\",IF(AND(TekananDarahDanGulaDarah[[#This Row],[Tingkat]]>GRendah,TekananDarahDanGulaDarah[[#This Row],[Tingkat]]<GTinggi),\"Normal\",\"Tinggi\"))), \"\")","v":"Normal"}]
[null,"2022-08-03","10:00:00","Hanya TD",143,91,75,190,{"$f":"TekananDarahDanGulaDarah[[#This Row],[Gula Darah]]","v":190},{"$f":"IFERROR(IF(TekananDarahDanGulaDarah[[#This Row],[Tingkat]]=0,\"\",IF(TekananDarahDanGulaDarah[[#This Row],[Tingkat]]<=GRendah,\"Rendah\",IF(AND(TekananDarahDanGulaDarah[[#This Row],[Tingkat]]>GRendah,TekananDarahDanGulaDarah[[#This Row],[Tingkat]]<GTinggi),\"Normal\",\"Tinggi\"))), \"\")","v":"Tinggi"}]
[null,"2022-08-03","12:00:00","Sebelum Makan",141,84,70,140,{"$f":"TekananDarahDanGulaDarah[[#This Row],[Gula Darah]]","v":140},{"$f":"IFERROR(IF(TekananDarahDanGulaDarah[[#This Row],[Tingkat]]=0,\"\",IF(TekananDarahDanGulaDarah[[#This Row],[Tingkat]]<=GRendah,\"Rendah\",IF(AND(TekananDarahDanGulaDarah[[#This Row],[Tingkat]]>GRendah,TekananDarahDanGulaDarah[[#This Row],[Tingkat]]<GTinggi),\"Normal\",\"Tinggi\"))), \"\")","v":"Normal"}]
[null,{"$f":"TODAY()","v":"2022-08-03"},"15:00:00","Setelah Makan",132,80,68,90,{"$f":"TekananDarahDanGulaDarah[[#This Row],[Gula Darah]]","v":90},{"$f":"IFERROR(IF(TekananDarahDanGulaDarah[[#This Row],[Tingkat]]=0,\"\",IF(TekananDarahDanGulaDarah[[#This Row],[Tingkat]]<=GRendah,\"Rendah\",IF(AND(TekananDarahDanGulaDarah[[#This Row],[Tingkat]]>GRendah,TekananDarahDanGulaDarah[[#This Row],[Tingkat]]<GTinggi),\"Normal\",\"Tinggi\"))), \"\")","v":"Normal"},"Minum obat TD sesudah makan"]
[null,"Rata-Rata",null,null,{"$f":"SUBTOTAL(101,TekananDarahDanGulaDarah[Sistolik])","v":133},{"$f":"SUBTOTAL(101,TekananDarahDanGulaDarah[Diastolik])","v":{"v":82.33333333333333,"d":"82"}},{"$f":"SUBTOTAL(101,TekananDarahDanGulaDarah[Denyut Jantung])","v":{"v":72.33333333333333,"d":"72"}},{"$f":"SUBTOTAL(101,TekananDarahDanGulaDarah[Gula Darah])","v":{"v":103.33333333333333,"d":"103"}}]